[Event "3rd Tal Heraklion-IM 2022"]
[Site "Heraklion"]
[Date "2022.05.02"]
[Round "7.3"]
[White "Peng, Li Min"]
[Black "Cmiel, Thorsten"]
[Result "1-0"]
[ECO "E32"]
[WhiteElo "2517"]
[BlackElo "2079"]
[Annotator "TA"]
[PlyCount "49"]
[EventDate "2022.04.18"]
[EventType "tourn"]
[EventCountry "GRE"]
[SourceTitle "playchess.com"]
[Source "ChessBase"]
[SourceQuality "1"]
[TimeControl "40/5400+30:1800+30"]

{[%evp 13,49,0,0,0,0,0,7,0,0,-2,0,0,0,0,0,0,0,0,0,0,0,0,0,0,0,0,34,27,52,67,64,52,92,86,183,183,183,191]} 1. d4 {[%emt 0:05:11]} Nf6 {[%emt 0:00:21]} 2. c4 {[%emt 0:00:06]} e6 {[%emt 0:00:06]} 3. Nc3 {[%emt 0:00:06]} Bb4 {[%emt 0:00:28]} 4. Qc2 {[%emt 0:00:28]} O-O {[%emt 0:05:04]} 5. e4 {[%emt 0:00:06]} d5 {[%emt 0:14:15]} 6. e5 {[%emt 0:00:06]} Ne4 {[%emt 0:00:56]} 7. Bd3 {[%emt 0:00:09]} c5 {[%emt 0:09:48]} 8. Nf3 {[%emt 0:01:08] E32: Nimzo-Indian: Classical (4 Qc2): 4...0-0.} cxd4 {[%emt 0:00:20]} 9. Nxd4 {[%emt 0:00:05]} Nd7 {[%emt 0:03:37]} 10. Bf4 {[%emt 0:00:02] The position is equal.} Qh4 {[%emt 0:08:53]} 11. g3 {[%emt 0:00:02]} Qh5 {[%emt 0:00:10]} 12. O-O {[%emt 0:00:32]} g5 {[%emt 0:07:59]} 13. cxd5 {[%emt 0:00:02]} Bxc3 {[%emt 0:02:32]} 14. bxc3 {[%emt 0:00:02][%cal Od5e6]} exd5 {[%emt 0:02:24]} 15. Bxe4 {[%emt 0:00:05]} dxe4 {[%emt 0:03:18]} 16. e6 {[%emt 0:00:02]} gxf4 {[%emt 0:03:34]} 17. exd7 {[%emt 0:00:02]} Bxd7 {[%emt 0:00:50]} 18. Qxe4 {[%emt 0:00:03]} fxg3 {[%emt 0:01:17]} 19. fxg3 {[%emt 0:00:01] [#]} b5 $146 {[%emt 0:05:00]} ({Predecessor:} 19... b6 20. Nf5 Rae8 21. Qd5 Bxf5 22. Rxf5 Qe2 23. Raf1 Qe3+ 24. R1f2 Qe1+ 25. Rf1 Qe3+ 26. R1f2 Qe1+ 27. Rf1 Qe3+ {½-½ (27) So,W (2770)-Ding,L (2799) chess24.com INT 2021}) 20. Nf5 {[%emt 0:00:14] [#] Threatens to win with Ne7+.} Bxf5 {[%emt 0:00:50]} 21. Rxf5 {[%emt 0:00:10]} Qg6 {[%emt 0:00:13]} 22. Raf1 {[%emt 0:01:49]} Qb6+ {[%emt 0:03:20]} 23. Kg2 {[%emt 0:01:20] aiming for Rg5+. White is more active.} Rae8 {[%emt 0:02:31]} (23... Rab8 $16 {keeps fighting.}) 24. Rg5+ $18 {[%emt 0:00:24]} Kh8 {[%emt 0:00:32] [#]} 25. Rxf7 $1 {[%emt 0:00:02][%mdl 512] Weighted Error Value: White=0.01 (flawless) /Black=0.10 (very precise)} 1-0

[Event "3rd Tal Heraklion-IM 2022"]
[Site "Heraklion"]
[Date "2022.05.02"]
[Round "7.5"]
[White "Lirindzakis, Timotheos"]
[Black "Sandalakis, Nikolaos"]
[Result "1/2-1/2"]
[ECO "C01"]
[WhiteElo "2164"]
[BlackElo "2240"]
[Annotator "TA"]
[PlyCount "34"]
[EventDate "2022.04.18"]
[EventType "tourn"]
[EventCountry "GRE"]
[SourceTitle "playchess.com"]
[Source "ChessBase"]
[SourceQuality "1"]
[TimeControl "40/5400+30:1800+30"]

{[%evp 19,27,0,18,0,0,0,0,0,0,6]} 1. e4 e6 2. d4 d5 3. exd5 exd5 4. Bd3 Bd6 5. Nf3 Nf6 6. O-O O-O 7. c3 c6 8. Bg5 Bg4 9. Nbd2 Nbd7 10. Qc2 Qc7 {The position is equal.} 11. Bh4 {C01: French: Exchange Variation.} Bh5 12. Bg3 Bxg3 {has lost popularity (12...Bg6).} 13. hxg3 Rae8 14. Rfe1 {[%emt 0:07:00] [#] A rather calm draw.  Weighted Error Value: White=0.09 (flawless) /Black=0.05 (flawless)} {Predecessor:} Bg6 $146 15. Bxg6 hxg6 16. Rxe8 Rxe8 17. Re1 Rxe1+ {½-½ (17) Lisiecki,R (1727)-Graff,S Polanica Zdroj 2021} 1/2-1/2

[Event "3rd Tal Heraklion-IM 2022"]
[Site "Heraklion"]
[Date "2022.05.03"]
[Round "8.1"]
[White "Kotsinis, Alexandros"]
[Black "Sandalakis, Nikolaos"]
[Result "1-0"]
[ECO "D10"]
[WhiteElo "2055"]
[BlackElo "2240"]
[Annotator "TA"]
[PlyCount "81"]
[EventDate "2022.04.18"]
[EventType "tourn"]
[EventCountry "GRE"]
[SourceTitle "playchess.com"]
[Source "ChessBase"]
[SourceQuality "1"]
[TimeControl "40/5400+30:1800+30"]

{[%evp 15,81,0,14,-10,-14,-6,0,-10,-10,-19,18,0,23,24,46,35,43,46,41,38,53,40,41,41,44,13,16,0,0,0,0,-1,0,-5,0,0,0,0,0,-5,0,0,0,0,0,-7,-16,-24,160,147,162,87,83,106,394,379,537,525,521,437,1366,1322,1407,1348,1321,1166,5808,5038]} 1. d4 {[%emt 0:04:09]} d5 {[%emt 0:00:06]} 2. c4 {[%emt 0:00:04]} c6 {[%emt 0:00:03]} 3. cxd5 {[%emt 0:00:05]} cxd5 {[%emt 0:00:08]} 4. Bf4 {[%emt 0:00:03]} Nc6 {[%emt 0:00:18]} 5. e3 {[%emt 0:00:06]} Nf6 {[%emt 0:01:48]} 6. Nc3 {[%emt 0:00:08]} a6 {[%emt 0:00:26]} 7. Bd3 {[%emt 0:02:00]} Bg4 {[%emt 0:00:41]} 8. f3 {[%emt 0:03:06]} Bh5 {[%emt 0:00:42]} 9. g4 {[%emt 0:07:55] D10: Slav Defence: 3 cxd5 (without early Nf3) and 3 Nc3.} Bg6 {[%emt 0:00:18]} 10. h4 {[%emt 0:00:12][%cal Bh2h4,Bh4h5][%mdl 32]} e6 {[%emt 0:08:22]} 11. h5 {[%emt 0:00:09] The position is equal.} Bxd3 {[%emt 0:00:04]} 12. Qxd3 {[%emt 0:00:02]} Bd6 {[%emt 0:09:27]} 13. Nge2 {[%emt 0:02:24][%cal Bg1e2,Be2f4,Bf4d3][%mdl 32]} Bxf4 {[%emt 0:00:55]} 14. Nxf4 {[%emt 0:06:42] [#]} h6 $146 {[%emt 0:04:55]} ({Predecessor:} 14... Qb6 15. O-O-O O-O-O 16. g5 Nd7 17. g6 hxg6 18. hxg6 Nb4 19. Qb1 Rxh1 20. Rxh1 fxg6 {1-0 (36) Papasimakopoulos,A (2259)-Meduri,A (2000) Chess.com INT 2022}) 15. O-O-O {[%emt 0:02:06]} Qa5 {[%emt 0:11:47]} 16. Kb1 {[%emt 0:02:23]} O-O-O {[%emt 0:02:24]} 17. Rhg1 {[%emt 0:03:03]} Nh7 {[%emt 0:09:50]} 18. Qc2 {[%emt 0:17:44]} Kb8 {[%emt 0:04:17]} 19. Nd3 {[%emt 0:03:17]} Rc8 {[%emt 0:04:33]} 20. Qa4 {[%emt 0:02:46]} Rc7 {[%emt 0:07:09]} 21. b4 {[%emt 0:05:06]} Qxa4 {[%emt 0:15:42]} 22. Nxa4 {[%emt 0:00:02]} Ka7 {[%emt 0:00:53]} 23. Nac5 {[%emt 0:08:52]} b6 {[%emt 0:01:08]} 24. Nb3 {[%emt 0:00:04]} Nf6 {[%emt 0:03:39][%cal Bh7f6,Bf6e8,Be8d6,Bd6c4][%mdl 32]} 25. Rc1 {[%emt 0:01:26]} Rhc8 {[%emt 0:01:32]} 26. a4 {[%emt 0:13:45]} Ne8 {[%emt 0:00:08]} 27. g5 {[%emt 0:14:09]} Nd6 {[%emt 0:09:19]} 28. g6 {[%emt 0:02:09]} Nc4 {[%emt 0:02:05]} 29. gxf7 {[%emt 0:00:24]} Rxf7 {[%emt 0:00:02]} 30. b5 {[%emt 0:00:36]} axb5 {[%emt 0:01:11]} 31. axb5 {[%emt 0:00:01]} Ne7 {[%emt 0:01:06] [#]} (31... Na3+ $11 32. Kb2 Nxb5) 32. Ne5 $16 {[%emt 0:00:44]} Nxe5 {[%emt 0:00:40]} 33. Rxc8 {[%emt 0:00:42]} (33. dxe5 $18 {Hoping for Rxc8.} Rxc1+ 34. Kxc1) 33... Nxc8 {[%emt 0:00:38]} 34. dxe5 {[%emt 0:00:01][%mdl 4096] Endgame KRN-KRN} Ne7 $2 {[%emt 0:00:42][%mdl 8192] Black cannot hold the game after this.} (34... Rxf3 $16 35. Nd4 Rxe3) 35. Nd4 $18 {[%emt 0:00:27]} Nf5 {[%emt 0:00:16]} (35... Kb8 {was necessary.} 36. Nxe6 Nf5) 36. Nxf5 {[%emt 0:01:03] White is clearly winning.} exf5 {[%emt 0:00:41]} 37. f4 {[%emt 0:00:21]} Kb7 {[%emt 0:00:02]} (37... Rc7 $142 38. Rg6 Kb8) 38. Kc2 {[%emt 0:00:25]} Kc7 {[%emt 0:00:35]} 39. Kd3 {[%emt 0:00:11]} Kd7 {[%emt 0:00:19]} 40. Kd4 {[%emt 0:00:00]} Ke6 {[%emt 0:00:00]} 41. Rg6+ {[%emt 0:00:32] Weighted Error Value: White=0.10 (very precise) /Black=0.36} 1-0

[Event "3rd Tal Heraklion-IM 2022"]
[Site "Heraklion"]
[Date "2022.05.03"]
[Round "8.3"]
[White "Cmiel, Thorsten"]
[Black "Milonakis, Georgios"]
[Result "1/2-1/2"]
[ECO "C97"]
[WhiteElo "2079"]
[BlackElo "2215"]
[Annotator "TA"]
[PlyCount "164"]
[EventDate "2022.04.18"]
[EventType "tourn"]
[EventCountry "GRE"]
[SourceTitle "playchess.com"]
[Source "ChessBase"]
[SourceQuality "1"]
[TimeControl "40/5400+30:1800+30"]

{[%evp 27,164,42,54,44,45,52,48,38,49,21,24,-22,33,26,23,24,29,21,35,31,32,32,37,28,23,27,22,20,20,20,20,16,31,30,20,27,27,20,31,20,22,22,36,32,36,32,36,28,24,20,38,26,38,35,41,13,28,0,0,0,0,0,0,0,0,0,0,0,0,0,0,0,0,0,0,0,0,0,0,0,0,0,0,0,0,0,0,0,0,0,0,0,0,0,0,0,0,0,0,0,110,110,306,306,306,31,31,31,34,36,658,403,883,846,1072,987,918,771,830,761,699,50,629,576,472,50,504,50,50,50,50,50,50,0,50,0,50,0,50]} 1. e4 {[%emt 0:00:28]} e5 {[%emt 0:00:15]} 2. Nf3 {[%emt 0:00:23]} Nc6 {[%emt 0:00:25]} 3. Bb5 {[%emt 0:00:55][%cal Bf1b5,Bb5a4,Ba4b3][%mdl 32]} a6 {[%emt 0:00:35]} 4. Ba4 {[%emt 0:01:13]} Nf6 {[%emt 0:00:15]} 5. O-O {[%emt 0:00:09]} Be7 {[%emt 0:01:11]} 6. Re1 {[%emt 0:00:08]} b5 {[%emt 0:00:17]} 7. Bb3 {[%emt 0:00:07]} d6 {[%emt 0:00:36]} 8. c3 {[%emt 0:00:08]} O-O {[%emt 0:00:39]} 9. h3 {[%emt 0:00:05]} Na5 {[%emt 0:00:37]} 10. Bc2 {[%emt 0:00:09]} c5 {[%emt 0:01:04]} 11. d4 {[%emt 0:01:02]} Qc7 {[%emt 0:00:23]} 12. d5 {[%emt 0:00:20]} Bd7 {[%emt 0:00:57]} 13. b3 {[%emt 0:00:08]} Nb7 {[%emt 0:01:58]} 14. c4 {[%emt 0:00:07]} Rfe8 {[%emt 0:04:56]} 15. Nbd2 {[%emt 0:01:10][%cal Bb1d2,Bd2f1,Bf1g3][%mdl 32] C97: Closed Ruy Lopez: Chigorin Defence: 11 d4 Qc7, sidelines.} g6 {[%emt 0:02:49]} 16. Nf1 {[%emt 0:00:25]} Nh5 {[%emt 0:03:18]} 17. Bh6 {[%emt 0:04:15] White is slightly better.} Nd8 {[%emt 0:05:53] [#]} 18. Qd2 $146 {[%emt 0:13:05]} ({Predecessor:} 18. g4 Nf4 19. Bxf4 exf4 20. e5 Bf8 21. exd6 Qxd6 22. Rxe8 Bxe8 23. Qd3 Bg7 24. Re1 {½-½ (39) Lira,J (2000)-Silva,M (2201) ICCF email 2005}) 18... f6 {[%emt 0:03:46]} 19. g4 {[%emt 0:00:17] [#]} (19. Be3 $142) 19... Ng7 {[%emt 0:00:36]} (19... g5 $1 $11 20. gxh5 Nf7) 20. Ng3 {[%emt 0:04:28]} Nf7 {[%emt 0:01:37]} 21. Be3 {[%emt 0:00:14]} Reb8 {[%emt 0:06:09]} 22. Bd3 {[%emt 0:20:38]} bxc4 {[%emt 0:05:55]} 23. bxc4 {[%emt 0:05:07]} Bd8 {[%emt 0:07:31]} 24. Reb1 {[%emt 0:04:45]} Qa5 {[%emt 0:01:43]} 25. Qxa5 {[%emt 0:01:29]} Bxa5 {[%emt 0:00:19]} 26. Rxb8+ {[%emt 0:01:31]} Rxb8 {[%emt 0:00:07]} 27. Rb1 {[%emt 0:00:05]} Rxb1+ {[%emt 0:01:57]} 28. Bxb1 {[%emt 0:00:09]} Kf8 {[%emt 0:04:20]} 29. Bc2 {[%emt 0:01:00]} Ke7 {[%emt 0:00:45]} 30. Kg2 {[%emt 0:07:21]} Bb4 {[%emt 0:04:57]} 31. Bc1 {[%emt 0:01:16]} Nd8 {[%emt 0:10:36]} 32. Ng1 {[%emt 0:08:41]} Ba5 {[%emt 0:00:41]} 33. Kf1 {[%emt 0:05:20]} Nb7 {[%emt 0:03:00]} 34. N1e2 {[%emt 0:04:35]} Kf7 {[%emt 0:03:39]} 35. f3 {[%emt 0:03:35]} Ne8 {[%emt 0:05:19]} 36. Kf2 {[%emt 0:00:26]} Nc7 {[%emt 0:00:23]} 37. Nf1 {[%emt 0:00:20]} Na8 {[%emt 0:00:31]} 38. Ne3 {[%emt 0:00:18]} Bd8 {[%emt 0:00:52]} 39. Kf1 {[%emt 0:00:31]} Nb6 {[%emt 0:00:52]} 40. Bd2 {[%emt 0:00:00]} h5 {[%emt 0:00:00]} 41. Bd3 {[%emt 0:08:39]} hxg4 {[%emt 0:09:35]} 42. hxg4 {[%emt 0:00:46]} Na4 {[%emt 0:01:28]} 43. Nc1 {[%emt 0:04:54]} Ba5 {[%emt 0:02:42]} 44. Bxa5 {[%emt 0:04:08]} Nxa5 {[%emt 0:00:09]} 45. Nb3 {[%emt 0:00:21]} Nb7 {[%emt 0:00:30]} 46. Nd1 {[%emt 0:00:13]} Kg7 {[%emt 0:02:07]} 47. Kf2 {[%emt 0:01:43]} Kh6 {[%emt 0:00:20]} 48. Kg3 {[%emt 0:00:23]} Kg5 {[%emt 0:04:39]} 49. Nd2 {[%emt 0:03:36]} Nb6 {[%emt 0:05:47]} 50. Ne3 {[%emt 0:04:54]} Na5 {[%emt 0:08:18]} 51. Nb3 {[%emt 0:04:45]} Nxb3 {[%emt 0:01:43]} 52. axb3 $11 {[%emt 0:00:03][%mdl 4096] Endgame KBN-KBN} a5 {[%emt 0:01:52]} 53. Bc2 {[%emt 0:04:03]} Nc8 {[%emt 0:07:59]} 54. Nd1 {[%emt 0:06:04]} Ne7 {[%emt 0:01:19]} 55. Nc3 {[%emt 0:01:32]} Kh6 {[%emt 0:00:29]} 56. Kh4 {[%emt 0:01:41]} g5+ {[%emt 0:02:43]} 57. Kg3 {[%emt 0:00:01]} Kg7 {[%emt 0:00:17]} 58. Kf2 {[%emt 0:00:10]} Kf8 {[%emt 0:00:12]} 59. Ke3 {[%emt 0:00:31]} Ng6 {[%emt 0:00:23]} 60. Ne2 {[%emt 0:00:05]} Ke7 {[%emt 0:00:48]} 61. Bd1 {[%emt 0:00:04]} Kd8 {[%emt 0:00:46]} 62. Kd2 {[%emt 0:00:17]} Kc7 {[%emt 0:00:54]} 63. Ng3 {[%emt 0:00:50]} Nf4 {[%emt 0:01:10]} (63... Kd8 $11) 64. Nh5 $16 {[%emt 0:01:28]} Nxh5 $2 {[%emt 0:00:57]} (64... Be8 $16) 65. gxh5 {[%emt 0:00:01] Strongly threatening h6. KB-KB} Be8 {[%emt 0:00:10]} 66. h6 $2 {[%emt 0:00:02]} (66. f4 $1 $18 {[%cal Rf4g5]}) 66... Bg6 $14 {[%emt 0:00:03]} 67. Kc3 {[%emt 0:02:37]} Kd8 {[%emt 0:00:55] Threatens to win with ...Ke7.} 68. Kb2 $1 {[%emt 0:00:04]} Ke7 $2 {[%emt 0:00:42][%mdl 8192] [#]} (68... Kc7 $14) 69. Ka3 $1 $18 {[%emt 0:00:01] Ka4 is the strong threat.} Kf8 {[%emt 0:01:22]} (69... Kd8 $142 70. Ka4 Bh7) 70. Ka4 {[%emt 0:00:02]} g4 {[%emt 0:00:22]} 71. fxg4 {[%emt 0:00:12]} Bxe4 {[%emt 0:00:19]} 72. Kb5 {[%emt 0:00:29]} Bg6 {[%emt 0:01:13]} 73. Kc6 {[%emt 0:00:56]} Ke7 {[%emt 0:00:16]} 74. Kc7 $2 {[%emt 0:00:13]} (74. Kb6 $18 f5 75. Kxa5) 74... Bh7 $2 {[%emt 0:00:23][%mdl 8192]} (74... e4 $14) 75. Be2 {[%emt 0:01:10]} e4 {[%emt 0:00:41]} 76. Kc6 $2 {[%emt 0:00:29]} ({Only move:} 76. Kb6 $18 Bg6 77. Kxa5) 76... f5 $2 {[%emt 0:01:56][%mdl 8192] [#]} (76... e3 $1 $14) 77. gxf5 $2 {[%emt 0:00:03]} (77. g5 $1 $18 {aiming for Bh5.} f4 78. Bh5) 77... Bxf5 $14 {[%emt 0:00:08]} 78. Kc7 {[%emt 0:00:06]} e3 {[%emt 0:00:16]} 79. Kc6 {[%emt 0:00:09]} Bc2 {[%emt 0:00:16]} 80. Kc7 {[%emt 0:00:12]} (80. Kb6 $14) 80... Bh7 {[%emt 0:01:19]} (80... Bxb3 81. h7 Kf7 82. h8=Q) (80... Bf5 $1 $11) 81. Kc6 {[%emt 0:00:01]} Bc2 {[%emt 0:01:00]} 82. Kc7 {[%emt 0:00:06]} ({Better is} 82. Kb5 $14 Kf6 83. Kxa5) 82... Bh7 {[%emt 0:00:43] Black defended with fortune.  Weighted Error Value: White=0.05 (flawless) /Black=0.04 (flawless)} (82... Bxb3 83. h7 Kf7 84. h8=Q) (82... Bf5 $11) 1/2-1/2

[Event "3rd Tal Heraklion-IM 2022"]
[Site "Heraklion"]
[Date "2022.05.03"]
[Round "8.4"]
[White "Rakshitta Ravi"]
[Black "Peng, Li Min"]
[Result "0-1"]
[ECO "A30"]
[WhiteElo "2240"]
[BlackElo "2517"]
[Annotator "TA"]
[PlyCount "76"]
[EventDate "2022.04.18"]
[EventType "tourn"]
[EventCountry "GRE"]
[SourceTitle "playchess.com"]
[Source "ChessBase"]
[SourceQuality "1"]
[TimeControl "40/5400+30:1800+30"]

{[%evp 17,76,31,33,0,5,0,0,0,34,53,50,48,42,36,81,75,75,85,97,96,66,38,116,100,116,86,99,90,107,95,106,94,102,98,113,104,113,0,0,0,0,-72,-69,-64,-77,-181,-156,-201,-199,-360,-360,-1118,-664,-2004,-1970,-29993,-29994,-29997,-29994,-29994,-29995]} 1. Nf3 {[%emt 0:01:59]} c5 {[%emt 0:06:03]} 2. g3 {[%emt 0:01:08]} Nf6 {[%emt 0:04:21]} 3. c4 {[%emt 0:01:42]} b6 {[%emt 0:00:07]} 4. Bg2 {[%emt 0:00:20]} Bb7 {[%emt 0:00:02]} 5. O-O {[%emt 0:00:39]} g6 {[%emt 0:00:03]} 6. Nc3 {[%emt 0:04:22]} Bg7 {[%emt 0:00:04]} 7. d4 {[%emt 0:06:18]} cxd4 {[%emt 0:00:09]} 8. Qxd4 {[%emt 0:01:41]} d6 {[%emt 0:00:37]} 9. Rd1 {[%emt 0:12:13]} Nbd7 {[%emt 0:00:49]} 10. h3 {[%emt 0:07:26] A30: Symmetrical English: Double Fianchetto and Hedgehog.} Rc8 {[%emt 0:00:30] [#]} 11. Rb1 $146 {[%emt 0:07:55]} ({Predecessor:} 11. Be3 Nh5 12. Qh4 h6 13. Nd5 Ndf6 14. Nxf6+ Bxf6 15. Qg4 Bxb2 16. Rab1 Ba3 17. Qh4 Bc5 {½-½ (48) Gomes,M (2298)-Swati,G (2320) New Delhi 2008}) 11... a6 {[%emt 0:00:14]} 12. Be3 {[%emt 0:03:25] The position is equal.} Kf8 {[%emt 0:07:21]} 13. Rbc1 {[%emt 0:05:33]} Kg8 {[%emt 0:00:05][%cal Of6d5]} 14. Qd3 {[%emt 0:11:27] Inhibits Nd5.} h6 {[%emt 0:20:57]} 15. b3 {[%emt 0:01:05][%cal Bb2b3,Bb3b4][%mdl 32]} Kh7 {[%emt 0:00:02] [#]} 16. Ng5+ $1 {[%emt 0:02:48]} hxg5 {[%emt 0:00:15]} 17. Bxb7 {[%emt 0:00:07]} Nc5 {[%emt 0:03:43]} 18. Bxc5 {[%emt 0:00:16]} Rxc5 {[%emt 0:00:02]} 19. Bg2 {[%emt 0:05:37]} (19. b4 $5 {[%cal Rb4c5]} Re5 20. g4 $16 (20. Bxa6 Kg8 $14)) 19... Qc7 {[%emt 0:02:21]} (19... Qb8 $14) 20. b4 {[%emt 0:02:32]} Re5 {[%emt 0:01:08]} (20... Rxc4 $2 21. Nd5 $1 {[%mdl 512]} Rxc1 22. Nxc7 Rxc7 23. Qxa6 $18) 21. Nd5 {[%emt 0:00:07]} Qb8 {[%emt 0:01:05]} 22. e3 {[%emt 0:01:48][%cal Be2e3,Be3f4][%mdl 32]} a5 {[%emt 0:00:12]} 23. f4 {[%emt 0:03:22]} Re6 {[%emt 0:00:21]} 24. a3 {[%emt 0:10:23][%cal Ba2a3,Ba3b4][%mdl 32]} axb4 {[%emt 0:00:06]} 25. axb4 {[%emt 0:00:04]} gxf4 {[%emt 0:00:03]} 26. exf4 {[%emt 0:02:37]} ({But not} 26. Nxf4 Re5 $14) 26... Rc8 {[%emt 0:10:05][%cal Ob6b5]} 27. Re1 {[%emt 0:02:35]} (27. Nc3 $16) 27... Rxe1+ {[%emt 0:00:16]} 28. Rxe1 {[%emt 0:00:05]} Nxd5 {[%emt 0:00:56]} 29. Qxd5 {[%emt 0:01:51]} (29. Bxd5 $11 e6 30. Bxe6 fxe6 31. Rxe6) 29... e6 $17 {[%emt 0:00:21]} 30. Qb5 {[%emt 0:00:56]} Qc7 {[%emt 0:00:41]} 31. Bf1 {[%emt 0:00:09]} (31. Rd1 $17) 31... d5 $19 {[%emt 0:00:32][%cal Rd5c4]} 32. Rc1 {[%emt 0:01:25] [#]} ({Don't go for} 32. cxd5 $2 Qc3 33. Rd1 Qe3+ 34. Kh2 Rc2+ 35. Bg2 Qf3 $19) 32... Qa7 $1 {[%emt 0:00:07] White must now prevent ...Qa3.} 33. Rd1 $2 {[%emt 0:01:32]} (33. Rc2) 33... Qa3 {[%emt 0:01:44]} 34. Rd3 {[%emt 0:00:13]} (34. Kh2) 34... Qa1 {[%emt 0:00:02] aiming for ...Bd4+.} 35. cxd5 {[%emt 0:00:51]} Bd4+ {[%emt 0:00:04]} 36. Kg2 {[%emt 0:01:27]} Rc2+ {[%emt 0:00:02] Black mates.} 37. Kf3 {[%emt 0:00:07]} Qxf1+ {[%emt 0:00:08]} 38. Kg4 {[%emt 0:00:02]} Qe2+ {[%emt 0:00:06] Weighted Error Value: White=0.71/Black=0.20 (precise)} 0-1

[Event "3rd Tal Heraklion-IM 2022"]
[Site "Heraklion"]
[Date "2022.05.03"]
[Round "8.5"]
[White "Bracker, Arne"]
[Black "Langrock, Hannes"]
[Result "1/2-1/2"]
[ECO "B47"]
[WhiteElo "2276"]
[BlackElo "2351"]
[Annotator "TA RC"]
[PlyCount "99"]
[EventDate "2022.04.18"]
[EventType "tourn"]
[EventCountry "GRE"]
[SourceTitle "playchess.com"]
[Source "ChessBase"]
[SourceQuality "1"]
[TimeControl "40/5400+30:1800+30"]

{[%evp 11,99,29,30,11,31,12,27,33,16,28,22,7,13,0,-1,0,0,0,0,0,0,16,10,-12,0,-2,0,-27,0,0,0,0,0,0,0,0,61,61,75,60,60,64,118,0,0,0,0,0,0,0,0,0,0,2,16,16,16,16,44,44,44,44,44,44,44,44,44,44,44,44,44,44,52,52,52,52,52,52,52,52,52,52,52,52,52,52,52,52,51,51]} 1. e4 {[%emt 0:00:04]} c5 {[%emt 0:00:32]} 2. Nf3 {[%emt 0:00:19]} e6 {[%emt 0:00:24]} 3. d4 {[%emt 0:00:09]} cxd4 {[%emt 0:00:04]} 4. Nxd4 {[%emt 0:00:03]} Nc6 {[%emt 0:00:27]} 5. Nc3 {[%emt 0:00:26]} Qc7 {[%emt 0:00:23]} 6. Be2 {[%emt 0:02:45]} a6 {[%emt 0:03:33]} 7. Nxc6 {[%emt 0:00:45] B47: Sicilian: Taimanov: 5 Nc3 Qc7 6 f4, 6 g3 and 6 Be2.} bxc6 {[%emt 0:05:19]} 8. Qd3 $1 {[%emt 0:00:17][%mdl 4] is more profitable than 8.0-0 at the moment.} Nf6 {[%emt 0:02:11]} 9. Qg3 {[%emt 0:01:33] White has an edge.} Qxg3 {[%emt 0:01:23]} 10. hxg3 {[%emt 0:00:04]} d5 {[%emt 0:01:34]} 11. exd5 {[%emt 0:07:32]} cxd5 {[%emt 0:09:54]} 12. Bf4 {[%emt 0:00:24] [#] Prevents Rb8.} Bb7 $146 {[%emt 0:06:28]} ({Predecessor:} 12... Bb4 13. Be5 Ke7 14. g4 Bb7 15. a3 Bd6 16. Bxd6+ Kxd6 17. g5 Nd7 18. O-O-O h6 19. gxh6 Rxh6 20. Rxh6 gxh6 {1-0 (50) Firouzja,A (2770)-Mastrovasilis,D (2619) Terme Catez 2021}) 13. O-O-O {[%emt 0:05:16]} Bc5 {[%emt 0:03:46]} 14. f3 {[%emt 0:02:01]} Ke7 {[%emt 0:06:03]} 15. Na4 {[%emt 0:19:00]} Ba7 {[%emt 0:16:31]} 16. Bd2 {[%emt 0:17:58]} Rhc8 {[%emt 0:04:12]} 17. Rh4 {[%emt 0:04:46]} d4 {[%emt 0:07:09]} 18. Kb1 {[%emt 0:04:03]} Nd5 {[%emt 0:07:07]} 19. c4 {[%emt 0:01:44]} (19. b3 $5 {[%cal Rh4h7]}) 19... Ne3 {[%emt 0:07:56]} (19... dxc3 $5 20. Nxc3 Ne3 $11) 20. Bxe3 {[%emt 0:01:40]} dxe3 {[%emt 0:00:03]} 21. Rxh7 {[%emt 0:01:59]} Rd8 {[%emt 0:00:37] And now ...Rxd1+ would win.} 22. Rhh1 {[%emt 0:02:21]} ({Avoid the trap} 22. Rxg7 $2 Rxd1+ 23. Bxd1 Rd8 $19) 22... Bc6 {[%emt 0:05:21]} 23. Nc3 {[%emt 0:00:17]} f5 {[%emt 0:00:44]} (23... a5 $11) 24. b4 $1 $14 {[%emt 0:04:16]} e5 {[%emt 0:02:47]} 25. Rxd8 {[%emt 0:07:54]} (25. Kc2 {looks sharper.} Bd4 26. Kb3 Rac8 27. Rc1) 25... Rxd8 {[%emt 0:00:02]} 26. Rd1 {[%emt 0:00:10] Hoping for Rxd8.} Rd4 {[%emt 0:01:35]} ({Black should play} 26... Rh8 $14) 27. Nd5+ {[%emt 0:03:33]} ({Better is} 27. Kc2 $16) 27... Bxd5 $11 {[%emt 0:01:09]} 28. Rxd4 {[%emt 0:00:17]} Bxd4 {[%emt 0:00:46]} 29. cxd5 {[%emt 0:00:17][%mdl 4096] Endgame KB-KB} Bc3 $1 {[%emt 0:00:41]} 30. a3 {[%emt 0:03:26]} a5 {[%emt 0:00:04]} 31. bxa5 {[%emt 0:05:58]} Bxa5 {[%emt 0:00:03]} 32. Kc2 {[%emt 0:00:16]} Kd6 {[%emt 0:00:07]} 33. Kd3 {[%emt 0:00:29]} Kxd5 {[%emt 0:00:28]} 34. Kxe3 {[%emt 0:00:19]} f4+ {[%emt 0:01:03]} 35. gxf4 {[%emt 0:00:40] White is slightly better.} Bb6+ {[%emt 0:00:05]} 36. Kd3 {[%emt 0:00:16] fxe5 is the strong threat.} exf4 {[%emt 0:00:05]} 37. Bd1 {[%emt 0:00:25]} g5 {[%emt 0:02:40]} 38. Bb3+ {[%emt 0:00:16]} Kc5 {[%emt 0:00:17]} 39. Be6 {[%emt 0:02:37]} Kb5 {[%emt 0:00:43]} 40. Bd7+ {[%emt 0:00:00]} Ka5 {[%emt 0:00:00]} 41. Ke4 {[%emt 0:00:29]} Bf2 {[%emt 0:03:10]} 42. Kf5 {[%emt 0:02:20]} Bh4 {[%emt 0:02:14]} 43. Kg6 {[%emt 0:05:01]} Kb6 {[%emt 0:00:32]} 44. Kh5 {[%emt 0:00:19]} Ka5 {[%emt 0:00:25]} 45. Bc6 {[%emt 0:00:31]} Kb6 {[%emt 0:00:07]} 46. Bd5 {[%emt 0:00:09]} Ka5 {[%emt 0:00:13]} 47. Bb3 {[%emt 0:00:07]} Kb5 {[%emt 0:00:09]} 48. Bd1 {[%emt 0:00:18]} Ka5 {[%emt 0:00:09]} 49. Kg4 {[%emt 0:00:15]} Kb5 {[%emt 0:00:12]} 50. Bb3 {[%emt 0:01:41] Weighted Error Value: White=0.05 (flawless) /Black=0.07 (flawless)} 1/2-1/2